Cogmind - Beta 17 @@@ ROGUE MODE // 2026.07.25 @ 22:50:19 Player: Afro Result: Destroyed by G-34 Mercenary with Small Laser Performance ------------- Evolutions (0) 0 Regions Visited (1) 200 Robots Destroyed (9) 45 Value Destroyed (56) 56 Prototype IDs (0) 0 Alien Tech Used (0) 0 Bonus (0) 0 TOTAL SCORE: 301 Bonus ------- None Cogmind --------- Core Integrity 0/250 Matter 264/300 Energy 100/100 System Corruption 0% Temperature Cool (6) Movement Core (150) Ox2 Location -10/Materials Parts ------- > --- POWER (1) -------- (None) > --- PROPULSION (2) --- (None) > --- UTILITY (2) ------ Small Storage Unit > --- WEAPON (2) ------- Heavy Hammer > --- INVENTORY (8) ---- Ion Engine Ion Engine Improved Terrain Scanner Light Armor Plating Small Laser Datajack Peak State ------------ > --- POWER ------------ Ion Engine > --- PROPULSION ------- Light Treads Light Treads > --- UTILITY ---------- Small Storage Unit Seismic Detector > --- WEAPON ----------- EM Pulse Gun Medium Laser > --- INVENTORY -------- Light Ion Engine Improved Terrain Scanner [Rating: 7] Favorites ----------- Power Ion Engine Engine Ion Engine Propulsion Light Treads Treads Light Treads Hover Unit Hover Unit Utility Small Storage Unit Device Seismic Detector Storage Small Storage Unit Weapon Medium Laser Energy Gun Medium Laser Impact Weapon Heavy Hammer Special Melee Weapon Datajack Build | -11 -10 ------- Run | Yrd Mat Slots Evolved . | . . Power . | . . Propulsion . | . . Utility . | . . Weapon . | . . Parts Attached 13 | 7 6 Power 2 | 1 1 Engine 2 | 1 1 Core . | . . Reactor . | . . Propulsion 3 | 2 1 Treads 2 | 2 . Leg . | . . Wheel . | . . Hover 1 | . 1 Flight . | . . Utility 2 | 2 . Device 1 | 1 . Storage 1 | 1 . Processor . | . . Hackware . | . . Protection . | . . Artifact . | . . Weapon 6 | 2 4 Energy Gun 4 | 2 2 Energy Cannon . | . . Ballistic Gun . | . . Ballistic Cannon . | . . Launcher . | . . Special Weapon . | . . Impact Weapon 1 | . 1 Slashing Weapon . | . . Piercing Weapon . | . . Special Melee Weapon 1 | . 1 Unidentified Prototypes . | . . Parts Lost 7 | . 7 Power 1 | . 1 Propulsion 3 | . 3 Utility 1 | . 1 Weapon 2 | . 2 Highest Loss Streak 7 | . 7 To Critical Strikes . | . . Average Backups 3 | 1 5 Power 1 | . 1 Propulsion . | . 1 Utility 1 | . 1 Weapon . | . 1 Tool/Special . | . . Unused Backups 4 | . 4 Power 1 | . 1 Propulsion . | . . Utility 2 | . 2 Weapon 1 | . 1 Tool/Special . | . . Average Slot Usage (%) 79 | . 79 Engine 12 | . 12 Treads 10 | . 10 Hover 7 | . 7 Device 12 | . 12 Storage 14 | . 14 Energy Gun 13 | . 13 Impact Weapon 1 | . 1 Special Melee Weapon 6 | . 6 Peak Build Rating 7 | 7 7 Average Rating 5 | 5 5 On Entrance 3 | . 7 Avg Prop Armor Cover (%) . | . . Naked Turns . | . . Heaviest Build 15 | 15 15 Greatest Support 40 | 40 40 Greatest Overweight (x) 2 | . 2 Average Overweight (x) . | . . Largest Inventory Capacity 8 | 8 8 Average Capacity 7 | 7 8 Most Carried 8 | 5 8 Average Carried 4 | 1 6 Final Capacity 8 | 8 8 Final Carried 6 | 2 6 Class Distribution -------------------- 100% | Mutant Dominant Class ---------------- Mutant | -10/Materials Resources | -11 -10 ----------- Run | Yrd Mat Matter Collected 286 | 270 16 Remotely . | . . Salvage Created 275 | 240 35 Parts 22 | 19 3 Haulers Intercepted . | . . Recyclers Shooed . | . . Parts Field Recycled . | . . Retrieved Matter . | . . Parts Self-Destructed . | . . Prevented . | . . Parts Restored . | . . Kills | -11 -10 ------- Run | Yrd Mat Combat Hostiles Destroyed 2 | . 2 Guns 2 | . 2 Classes Destroyed 4 | 3 1 Worker 2 | 2 . Tunneler 4 | 4 . Recycler 1 | 1 . Swarmer 2 | . 2 Best Kill Streak 2 | 2 2 Combat Bots Only 2 | . 2 Max Kills in Single Turn 1 | 1 1 Gunslinging . | . . Exploded . | . . Melee . | . . Uniques/NPCs Destroyed . | . . Combat | -11 -10 -------- Run | Yrd Mat Hostile Shots Fired 127 | . 127 Missed 31 | . 31 Hits 96 | . 96 Projectile 96 | . 96 Damage Taken 913 | . 913 Core 254 | . 254 Absorbed by Shields . | . . Core Remaining (%) 100 | 100 . Volleys Fired 28 | 20 8 Largest 2 | 2 2 Hottest 90 | 90 80 Shots Fired 55 | 40 15 Gun 55 | 40 15 Cannon . | . . Launcher . | . . Special . | . . Kinetic . | . . Thermal 35 | 20 15 Explosive . | . . Electromagnetic 20 | 20 . Robot Hit Streak 6 | 6 3 Robot Miss Streak 3 | 3 1 Penetration Max . | . . Secondary Targets 1 | . 1 Max Gunslinging Chain 1 | . 1 Shots Hit Robots 42 | 21 21 Core Hits 12 | 8 4 Critical Kills . | . . Critical Parts Destroyed 2 | . 2 Critical Strikes 2 | . 2 Smash 2 | . 2 Melee Attacks 11 | . 11 Impact 7 | . 7 Slashing . | . . Piercing . | . . Sneak Attacks 4 | . 4 Combat Hostiles . | . . Follow-up Attacks . | . . Damage Inflicted 601 | 277 324 Guns 406 | 277 129 Cannons . | . . Explosions . | . . Melee 191 | . 191 Ramming 4 | . 4 Kinetic . | . . Thermal 254 | 125 129 Explosive . | . . Electromagnetic 152 | 152 . Impact 191 | . 191 Slashing . | . . Piercing . | . . Highest Corruption . | . . Average Corruption . | . . Corruption Purged . | . . Corruption Blocked . | . . Overload Shots . | . . Overflow Damage 75 | . 75 Projectiles . | . . Explosions . | . . Melee 75 | . 75 Knockbacks 1 | . 1 Impact 1 | . 1 Kinetic . | . . Secondary . | . . Self-Inflicted Damage 2 | . 2 Shots . | . . Rammed 1 | . 1 Targets Rammed 1 | . 1 Kicked . | . . Crushed . | . . Highest Temperature 158 | 158 123 Average Temperature 58 | 55 68 Received Heat Transfer 306 | . 306 Siege Activations . | . . Martial Activations . | . . Shielding Activations . | . . Robots Disrupted . | . . Combat Hostiles . | . . Robots Corrupted . | . . Combat Hostiles . | . . Parts Fried 1 | 1 . Impact Corruptions 3 | . 3 Robots Melted . | . . Combat Hostiles . | . . Parts Melted 1 | 1 . Heat Transferred 670 | 370 300 Parts Sabotaged . | . . Parts Stolen . | . . Parts Stripped . | . . Power Chain Reactions . | . . Alert | -11 -10 ------- Run | Yrd Mat Maximum Alert Level . | . . Low Security (%) 100 | 100 100 Level 1 . | . . Level 2 . | . . Level 3 . | . . Level 4 . | . . Level 5 . | . . High Security . | . . Max Security . | . . Peak Influence 30 | 5 30 Initial . | . . Average 1 | . 1 Influence Increases 105 | 35 70 Destroy 0b10 Robot/C 40 | . 40 Destroy 0b10 Robot/NC 35 | 35 . Lose Combat Pursuer 30 | . 30 Influence Decreases 90 | 35 55 Time Decay 60 | 35 25 Lost Part 30 | . 30 Squads Dispatched 2 | . 2 Investigation 1 | . 1 Extermination . | . . Reinforcement 1 | . 1 Assault . | . . Garrison . | . . Intercept . | . . Searches Triggered . | . . Construction Impeded . | . . Haulers Reinforced . | . . Active Scanning Responses . | . . Cargo Convoy Interrupts . | . . Stealth | -11 -10 --------- Run | Yrd Mat Distress Signals . | . . Communications Jammed . | . . Distress Signals . | . . Times Spotted 7 | . 7 Peak Tracking Total 4 | . 4 Tactical Retreats 2 | . 2 Traps | -11 -10 ------- Run | Yrd Mat Traps Triggered 1 | . 1 Indirectly . | . . Trap Hack Attempts . | . . Triggered . | . . Disarmed . | . . Reprogrammed . | . . Reused . | . . Traps Extracted . | . . Installed . | . . Triggered . | . . Machines | -11 -10 ---------- Run | Yrd Mat Machines Disabled . | . . Max in Single Turn . | . . Machines Repaired . | . . Machines Dismantled . | . . Machines Sabotaged . | . . Overloaded Fab Kills . | . . Hacking | -11 -10 --------- Run | Yrd Mat Machines Accessed 1 | . 1 Terminals 1 | . 1 Fabricators . | . . Repair Stations . | . . Recycling Units . | . . Scanalyzers . | . . Garrison Access . | . . Total Hacks 1 | . 1 Successful . | . . Failed 1 | . 1 Catastrophic . | . . Database Lockouts . | . . Manual . | . . Terminals 1 | . 1 Fabricators . | . . Repair Stations . | . . Recycling Units . | . . Scanalyzers . | . . Garrison Access . | . . Terminal Hacks . | . . Fabricator Hacks . | . . Repair Station Hacks . | . . Recycling Unit Hacks . | . . Scanalyzer . | . . Garrison Access Hacks . | . . Unauthorized Hacks . | . . Terminals . | . . Fabricators . | . . Repair Stations . | . . Recycling Units . | . . Scanalyzers . | . . Garrison Access . | . . Data Cores Recovered . | . . Used . | . . Hacking Detections . | . . Full Trace Events . | . . Feedback Events . | . . Feedback Blocked . | . . Robot Schematics Acquired . | . . Robots Built . | . . Authchips . | . . Time . | . . Total Robot Build Rating . | . . Part Schematics Acquired . | . . Parts Built . | . . Authchips . | . . Time . | . . Total Part Build Rating . | . . Part Studies Acquired . | . . Parts Repaired . | . . Time . | . . Parts Recycled . | . . Recycled Matter . | . . Retrieved Matter . | . . Retrieved Components . | . . Parts Scanalyzed . | . . Part Schematics Acquired . | . . Parts Damaged . | . . Bothacking | -11 -10 ------------ Run | Yrd Mat Used RIF Installer . | . . Robots Hacked 3 | . 3 Non-combat 3 | . 3 Combat . | . . Robot Hacks Applied 4 | . 4 parse_system 1 | . 1 no_distress 3 | . 3 Relay Couplers Released . | . . Fabnet Peak Effective % . | . . Robots Rewired . | . . Allies Hacked . | . . Hacks Repelled . | . . Allies | -11 -10 -------- Run | Yrd Mat Total Allies . | . . Largest Group . | . . Highest-Rated Group . | . . Highest-Rated Ally . | . . Total Orders . | . . Ally Attacks . | . . Total Damage . | . . Kills . | . . Allies Corrupted . | . . Allies Melted . | . . Intel | -11 -10 ------- Run | Yrd Mat Active Infowar (turns) 298 | 41 257 Seismic 298 | 41 257 Robot Analysis Total . | . . Derelict Logs Recovered . | . . Drone Launches . | . . Drone Recoveries . | . . Exploration | -11 -10 ------------- Run | Yrd Mat Turns Passed 542 | 252 290 Spaces Moved 283 | 121 162 Core 25 | 15 10 Treads 151 | 106 45 Legs . | . . Wheels . | . . Hover 107 | . 107 Flight . | . . Fastest Speed 50 | 50 120 Average Speed 139 | 146 134 Slowest Speed 180 | 160 180 Overloaded Moves . | . . Propulsion Burnouts . | . . Robots Hopped . | . . Potential Cave-ins . | . . Cave-ins Triggered . | . . Exploration Rate (%) 16 | 6 26 Regions Visited 1 Branch Regions . Pre-discovered Areas . | . . Known Exits Taken . | . . Unknown Exits Taken 1 | 1 . Scrap Searched . | . . Spaces Dug . | . . Terrain Destroyed . | . . Melee . | . . Projectile . | . . AOE . | . . Terrain Rammed . | . . Walls Destroyed . | . . Machines Disabled . | . . Actions | -11 -10 --------- Run | Yrd Mat Total 364 | 156 208 Wait 3 | . 3 Move 282 | 120 162 Hop . | . . Pick Up 17 | 9 8 Fast Attach 1 | . 1 Attach 12 | 7 5 Detach 3 | . 3 Swap 3 | . 3 Drop 3 | . 3 Fire 28 | 20 8 Melee 11 | . 11 Ram 1 | . 1 Kick . | . . Crush . | . . Escape Stasis . | . . Rewire . | . . Trap . | . . Miscellaneous . | . . Route ------- -11/Scrapyard -10/Materials History --------- Turn | Location | Event 28 | -11/Scrapyard | Discovered new exit (range 16) 253 | -11/Scrapyard | Entered Materials 311 | -10/Materials | Build established: Mutant 509 | -10/Materials | Core integrity fell below 50% 529 | -10/Materials | Core integrity fell below 20% 543 | -10/Materials | Destroyed by G-34 Mercenary with Small Laser Last Messages --------------- Lgt. Ion Engine destroyed. G-34 Mercenary suffers critical hit (Smash). Destroyed Heat Sink. G-34 Mercenary system corrupted by crushing effect. Seismic Detector destroyed. G-34 Mercenary knocked back. Destroyed Aluminum Leg. G-34 Mercenary system corrupted by crushing effect. Lgt. Treads destroyed. G-34 Mercenary destroyed. Acquired 16 matter. K-01 Serf collects debris. G-34 Mercenary suffers critical hit (Smash). Destroyed Heat Sink. G-34 Mercenary system corrupted by crushing effect. G-34 Mercenary IFF system glitched. K-01 Serf collects debris. Map ----- +----------------------------------------------------+ | ?????????????????????????????????????????????????? | | ?????????????????????????????????????????????????? | | ?????????????????????????????????????????????????? | | ?????????????????????????????????????????????????? | | ?????????????????????????????????????????????????? | | ?????????????????????????????????????????????????? | | ?????????????????????????????????????????????????? | | ?????????????????????????????????????????????????? | | ?????????????????????????????????????????????????? | | ?????????????????????????????????????????????????? | | ??????????????????####???????????????????????????? | | ??????????????????#T"#???????????????????????????? | | ??????????######### "##### #??????????????????? | | ??????????# #??????????????????? | | ??????????# ##### ########????????????????????? | | ??????????# #???# #???????????????????????????? | | ??????????# #???# #???????????????????????????? | | ??????????# #?###+#######?????????????????????? | | ########### #?# ## #??????????????????? | | / #?# """ """ + #??????????????????? | | ##### #?# """ """ # #####+###??????????? | | #???# #?# """ """ #? ?????????? | | """ """ #???# #?# """ #? ?????????? | | """ """ #####+### """ # ?????????? | | """ """ ## T # # ????????? | | ## [[[ # @ # ##?????????? | | ## ! #######g### #???????????? | | ####+###### ! #????# #???????????? | | ??# ############????# ###???????????????? | | ??# # #??????????# #?????????????????? | | ??# # #???????##### ##?????????????????? | | ??# / #???????#[[% #??????????????????? | | ??# ########?????#[[ % #??????????????????? | | ??# # """ #?????#!! ####+#??????????????????? | | ??# # """ #?????#!! #???????????????????????? | | ??# # """ #?????#/ #???????????????????????? | | ??# # #?????#// #???????????????????????? | | ??# # #?????##### #???????????????????????? | | ??# + #?????????# #???????????????????????? | | ??# ########?????????#+#???????????????????????? | | ??# ########?????????? ???????????????????????? | | ??# # #?????????? "???????????????????????? | | ??# # #?????????? "???????????????????????? | | ??# + """ #?????????? "???????????????????????? | | ??# # """ #??????????? ???????????????????????? | | ??# + """ #??????????? ???????????????????????? | | ??# # #??????????? ???????????????????????? | | ??# ########???????????#???????????????????????? | | ?## ##?????????????????????????????????????????? | | ?# #?????????????????????????????????????????? | +----------------------------------------------------+ Best States ------------- Heat Dissipation 25 Energy Generation 10 Energy Capacity 250 Matter Stores 300 Matter Capacity 300 Sight Range 16 Terrain Scan Density 10 Evasion (%) 50 Recoil Reduction 2 Item Schematics ----------------- None Robot Schematics ------------------ None Fabricated ------------ Nothing Repaired ---------- Nothing Studied --------- None Alien Tech Used ----------------- None Achievements -------------- None Challenges ------------ None Game ------ Seed NodePlatingMask Manual? 0 Play Time 00:09:05 Cumulative 9.5 hours Start 2026.07.25 @ 22:43:03 End 2026.07.25 @ 22:50:19 Sessions 1 Manual Loads 0 Difficulty Rogue Special Mode None Game No. 12 Rogue 12 Adventurer 0 Explorer 0 Win Type - Total 0 Types 0/0/0/0/0/0/0/0/0/0 Lore% 3 Gallery% 9 Achievement% 9 Wizard Run 0 Options --------- Layout 1 ASCII 0 Keyboard 0 Movement Mouse Keybinds 0 Fullscreen 2 Font 24/Smallcaps Map View 50x35 Zoom Use 0% Tactical HUD 0 Map Filters NONE Filters NONE Steam 1 RUN: 6c0d8ba0-a073-438c-a36d-d7f0d640c7c9